bitfinex-derivatives/quotes_BNBF0:USTF0_20250331
["timestamp","ask_amount","ask_price","bid_price","bid_amount"]
[1743412687842,0.776,590.83,590.49,0.33870175]
[1743412687843,0.776,590.83,590.51,0.27518947]
[1743412688038,0.776,590.83,590.49,0.33870175]
[1743412688039,0.776,590.83,590.52,0.61387401]
[1743412688237,0.776,590.83,590.53,0.27518947]
[1743412688440,0.776,590.83,590.54,0.27518947]
[1743412688743,0.776,590.83,590.55,0.27518947]
[1743412688946,0.776,590.83,590.56,0.27518947]
[1743412689138,0.776,590.83,590.55,0.27518947]
[1743412689344,0.776,590.83,590.56,0.27518947]
[1743412689540,0.776,590.83,590.55,0.27518947]
[1743412689843,0.776,590.83,590.56,0.27518947]
[1743412690044,0.776,590.83,590.57,0.27518947]
[1743412690343,0.776,590.83,590.58,0.27518947]
[1743412690540,0.776,590.83,590.55,0.27518947]
[1743412690840,0.776,590.83,590.56,0.27518947]
[1743412691146,0.776,590.83,590.57,0.27518947]
[1743412691346,0.776,590.83,590.55,0.27518947]
[1743412696850,0.776,590.83,590.56,0.3386616]
[1743412697050,0.776,590.83,590.57,0.27518947]
[1743412698052,0.712,590.92,590.57,0.27518947]
[1743412699052,0.712,590.92,590.58,0.27518947]
[1743412699251,0.712,590.92,590.59,0.27518947]
[1743412699654,0.712,590.92,590.56,0.3386616]
[1743412699655,0.712,590.92,590.6,0.27518947]
[1743412699954,0.712,590.92,590.61,0.27518947]
[1743412700147,0.712,590.92,590.62,0.27518947]
[1743412700355,0.712,590.92,590.63,0.27518947]
[1743412700546,0.712,590.92,590.64,0.27518947]
[1743412700748,0.712,590.92,590.65,0.27518947]
[1743412700950,0.712,590.92,590.66,0.27518947]
[1743412701148,0.712,590.92,590.67,0.27518947]
[1743412701448,0.712,590.92,590.68,0.27518947]
[1743412701652,0.712,590.92,590.69,0.61348915]
[1743412702048,0.712,590.92,590.7,0.27490208]
[1743412702252,0.712,590.92,590.71,0.27490208]
[1743412702454,0.712,590.92,590.72,0.27490208]
[1743412702650,0.712,590.92,590.73,0.27490208]
[1743412702855,0.712,590.92,590.74,0.27490208]
[1743412703049,0.712,590.92,590.75,0.27490208]
[1743412703250,0.712,590.92,590.7,0.27490208]
[1743412703449,0.712,590.92,590.71,0.27490208]
[1743412703653,0.712,590.92,590.7,0.27490208]
[1743412703855,0.712,590.92,590.72,0.33856988]
[1743412704050,0.712,590.92,590.73,0.27490208]
[1743412704656,0.712,590.92,590.74,0.27490208]
[1743412704856,0.712,590.92,590.75,0.27490208]
[1743412705054,0.712,590.92,590.75,0.33855268]
[1743412705251,0.712,590.92,590.76,0.27490208]
[1743412705451,0.712,590.92,590.77,0.33854122]
[1743412705661,0.712,590.92,590.78,0.27490208]
[1743412706057,0.712,590.92,590.79,0.33852976]
[1743412706256,0.712,590.92,590.8,0.27490208]
[1743412706453,0.712,590.92,590.81,0.61342038]
[1743412706657,0.712,590.92,590.82,0.61341465]
[1743412706859,0.712,590.92,590.83,0.61340892]
[1743412707160,0.712,590.92,590.84,0.61340319]
[1743412707359,0.712,590.92,590.85,0.61339746]
[1743412707560,0.712,590.92,590.86,0.61339173]
[1743412707753,0.726,590.99,590.87,0.27490208]
[1743412707957,0.726,590.99,590.87,0.61338601]
[1743412708159,0.621,591.09,590.88,0.27490208]
[1743412708661,0.621,591.09,590.89,0.33847247]
[1743412708857,0.621,591.09,590.9,0.27488948]
[1743412709355,0.621,591.09,590.91,0.33846101]
[1743412709560,0.621,591.09,590.92,0.27488948]
[1743412710462,0.621,591.09,590.92,0.61334477]
[1743412710762,0.621,591.09,590.93,0.61333904]
[1743412710960,0.621,591.09,590.94,0.27488948]
[1743412711159,0.621,591.09,590.95,0.27488948]
[1743412711354,0.621,591.09,590.96,0.61332186]
[1743412711555,0.621,591.09,590.97,0.61331613]
[1743412711756,0.621,591.09,590.98,0.6133104]
[1743412711960,0.621,591.09,590.99,0.61330468]
[1743412712160,0.621,591.09,591.0,0.61329895]
[1743412712362,0.621,591.09,591.01,0.61329322]
[1743412712662,0.621,591.09,591.02,0.33839802]
[1743412713964,0.621,591.09,591.03,0.27484461]
[1743412714156,0.621,591.09,591.04,0.33838657]
[1743412714362,0.621,591.09,591.05,0.27484461]
[1743412714560,0.621,591.09,591.04,0.33838657]
[1743412714758,0.621,591.09,591.05,0.27484582]
[1743412716757,0.621,591.09,591.05,0.61322666]
[1743412716963,0.621,591.09,591.06,0.27484582]
[1743412718166,0.621,591.09,591.07,0.27484633]
[1743412718363,0.621,591.09,591.05,0.33838084]
[1743412718364,0.621,591.09,591.06,0.27484633]
[1743412718560,0.621,591.09,591.07,0.27484633]
[1743412718957,0.621,591.09,591.08,0.27484633]
[1743412719460,0.621,591.09,591.06,0.27484633]
[1743412721072,0.765,591.1,591.06,0.27484633]
[1743412723663,0.765,591.1,591.07,0.27484659]
[1743412723865,0.765,591.1,591.08,0.27484659]
[1743412724163,0.765,591.1,591.06,0.27484659]
[1743412724365,0.765,591.1,591.07,0.27484659]
[1743412724562,0.765,591.1,591.08,0.27484659]
[1743412724763,0.765,591.1,591.09,0.27484659]
[1743412725460,0.765,591.1,591.06,0.27484659]
[1743412727867,0.765,591.1,591.07,0.2748466]
[1743412728064,0.765,591.1,591.08,0.2748466]
[1743412728263,0.765,591.1,591.06,0.2748466]
[1743412728463,0.765,591.1,591.07,0.2748466]
[1743412728663,0.765,591.1,591.06,0.2748466]
[1743412737375,0.765,591.1,591.07,0.33836939]
[1743412737579,0.765,591.1,591.08,0.2748466]
[1743412737773,0.765,591.1,591.07,0.33836939]
[1743412737977,0.765,591.1,591.08,0.27478243]
[1743412738275,0.765,591.1,591.09,0.33835794]
[1743412738581,0.765,591.1,591.09,0.61314037]
[1743412740981,0.765,591.1,591.09,0.33835794]
[1743412741192,0.1222575,591.1,591.09,0.33835794]
[1743412741482,0.575,591.5,591.09,0.33835794]
[1743412742776,0.575,591.5,591.09,0.6131282]
[1743412742979,0.575,591.5,591.1,0.27477026]
[1743412743383,0.575,591.5,591.11,0.3383465]
[1743412743579,0.575,591.5,591.12,0.27477026]
[1743412745788,0.575,591.5,591.13,0.27477026]
[1743412745991,0.575,591.5,591.14,0.27477026]
[1743412746188,0.575,591.5,591.12,0.27477026]
[1743412746390,0.575,591.5,591.13,0.27477026]
[1743412746589,0.575,591.5,591.12,0.27477026]
[1743412746788,0.575,591.5,591.13,0.27477026]
[1743412746991,0.575,591.5,591.12,0.27477026]
[1743412747194,0.575,591.5,591.13,0.27477026]
[1743412747392,0.575,591.5,591.14,0.27477026]
[1743412747593,0.575,591.5,591.11,0.3383465]
[1743412747594,0.575,591.5,591.12,0.27477026]
[1743412747790,0.575,591.5,591.13,0.27477026]
[1743412747988,0.575,591.5,591.11,0.3383465]
[1743412748186,0.575,591.5,591.12,0.27482861]
[1743412748794,0.575,591.5,591.13,0.27482861]
[1743412748993,0.575,591.5,591.12,0.27482861]
[1743412749194,0.575,591.5,591.13,0.27482861]
[1743412749488,0.575,591.5,591.11,0.3383465]
[1743412749489,0.575,591.5,591.14,0.27482861]
[1743412749693,0.575,591.5,591.12,0.27482861]
[1743412749894,0.575,591.5,591.13,0.27482861]
[1743412750193,0.575,591.5,591.14,0.27482861]
[1743412750393,0.575,591.5,591.12,0.27482861]
[1743412750590,0.575,591.5,591.13,0.27482861]
[1743412750893,0.575,591.5,591.14,0.27482861]
[1743412751091,0.575,591.5,591.12,0.27482861]
[1743412751289,0.575,591.5,591.13,0.27482861]
[1743412751590,0.575,591.5,591.12,0.27482861]
[1743412751791,0.575,591.5,591.13,0.27482861]
[1743412751992,0.575,591.5,591.11,0.3383465]
[1743412751993,0.575,591.5,591.12,0.27482861]
[1743412752390,0.575,591.5,591.13,0.27482861]
[1743412752697,0.575,591.5,591.14,0.27482861]
[1743412752896,0.575,591.5,591.15,0.61315221]
[1743412753090,0.575,591.5,591.16,0.61314649]
[1743412753289,0.575,591.5,591.17,0.61314077]
[1743412753489,0.575,591.5,591.18,0.61313504]
[1743412753690,0.575,591.5,591.19,0.61312932]
[1743412753889,0.575,591.5,591.2,0.27482861]
[1743412757393,0.575,591.5,591.21,0.33828927]
[1743412757594,0.575,591.5,591.22,0.27482861]
[1743412757801,0.575,591.5,591.23,0.33827782]
[1743412758099,0.575,591.5,591.24,0.27482861]
[1743412758299,0.575,591.5,591.25,0.33826638]
[1743412758499,0.575,591.5,591.26,0.27482861]
[1743412758696,0.575,591.5,591.27,0.33825494]
[1743412758894,0.575,591.5,591.28,0.27482861]
[1743412759897,0.575,591.5,591.29,0.3382435]
[1743412760098,0.575,591.5,591.3,0.27482861]
[1743412760499,0.575,591.5,591.29,0.3382435]
[1743412760697,0.575,591.5,591.31,0.33823206]
[1743412760898,0.575,591.5,591.32,0.27466237]
[1743412761091,0.575,591.5,591.33,0.33822062]
[1743412761296,0.39415337,591.43,591.34,0.27466237]
[1743412761496,0.39415337,591.43,591.35,0.33820918]
[1743412761697,0.39415337,591.43,591.36,0.27466455]
[1743412761896,0.39415337,591.43,591.37,0.33819774]
[1743412762398,0.39415337,591.43,591.38,0.27466975]
[1743412762695,0.39415337,591.43,591.39,0.3381863]
[1743412762898,0.39415337,591.43,591.4,0.27466975]
[1743412764299,0.39415337,591.43,591.41,0.27470458]
[1743412764496,0.39415337,591.43,591.4,0.27470458]
[1743412764699,0.39415337,591.43,591.41,0.27470458]
[1743412764896,0.39415337,591.43,591.4,0.27470458]
[1743412765096,0.39415337,591.43,591.41,0.27470458]
[1743412765399,0.39415337,591.43,591.42,0.27470458]
[1743412765799,0.39415337,591.43,591.4,0.27470458]
[1743412771009,0.39415337,591.43,591.39,0.3381863]
[1743412771206,0.39415337,591.43,591.4,0.27478769]
[1743412772812,0.39415337,591.43,591.39,0.3381863]
[1743412773008,0.39415337,591.43,591.4,0.27476248]
[1743412779319,0.39415337,591.43,591.39,0.3381863]
[1743412780319,0.39415337,591.43,591.4,0.2746363]
[1743412781420,0.39415337,591.43,591.41,0.33817487]
[1743412781818,0.39415337,591.43,591.42,0.27464211]
[1743412782018,0.39415337,591.43,591.42,0.61281126]
[1743412782417,0.39415337,591.43,591.42,0.33816915]
[1743412782613,0.39415337,591.43,591.42,0.61281239]
[1743412785525,0.39415337,591.43,591.42,0.61280049]
[1743412788324,0.07722528,591.43,591.42,0.61280049]
[1743412801337,0.01561017,591.43,591.42,0.61280049]
[1743412802832,0.01561017,591.43,591.42,0.33816915]
[1743412803033,0.01561017,591.43,591.42,0.61289165]
[1743412806244,0.01561017,591.43,591.42,0.61288393]
[1743412809844,0.01561017,591.43,591.42,0.61288461]
[1743412811546,0.01561017,591.43,591.42,0.33816915]
[1743412811753,0.01561017,591.43,591.42,0.6128904]
[1743412814953,0.01561017,591.43,591.42,0.33816915]
[1743412815159,0.01561017,591.43,591.42,0.61293464]
[1743412816554,0.01561017,591.43,591.42,0.27476549]
[1743412816760,0.01561017,591.43,591.42,0.27476761]
[1743412817955,0.01561017,591.43,591.03,0.27476761]
[1743412818163,0.01561017,591.43,591.04,0.61315418]
[1743412818364,0.01561017,591.43,591.05,0.61314845]
[1743412818664,0.01561017,591.43,591.06,0.61314273]
[1743412818857,0.01561017,591.43,591.07,0.27476761]
[1743412819159,0.01561017,591.43,591.08,0.27476761]
[1743412819360,0.01561017,591.43,591.09,0.27476761]
[1743412819561,0.01561017,591.43,591.1,0.27476761]
[1743412819757,0.01561017,591.43,591.11,0.27476761]
[1743412819962,0.01561017,591.43,591.12,0.27476761]
[1743412820163,0.01561017,591.43,591.13,0.27476761]
[1743412820358,0.01561017,591.43,591.14,0.27476761]
[1743412820558,0.01561017,591.43,591.15,0.27476761]
[1743412820757,0.01561017,591.43,591.16,0.27476761]
[1743412820957,0.01561017,591.43,591.17,0.27476761]
[1743412821157,0.01561017,591.43,591.18,0.27476761]
[1743412821356,0.01561017,591.43,591.19,0.27476761]
[1743412821560,0.01561017,591.43,591.2,0.27476761]
[1743412821757,0.01561017,591.43,591.21,0.27476761]
[1743412821958,0.01561017,591.43,591.11,0.3383465]
[1743412821959,0.01561017,591.43,591.12,0.27476761]
[1743412822163,0.01561017,591.43,591.22,0.27476761]
[1743412822357,0.01561017,591.43,591.23,0.27476761]
[1743412822561,0.01561017,591.43,591.12,0.27476761]
[1743412822763,0.01561017,591.43,591.13,0.27476761]
[1743412822963,0.01561017,591.43,591.12,0.27476761]
[1743412825563,0.01561017,591.43,591.11,0.3383465]
[1743412825759,0.01561017,591.43,591.12,0.2747951]
[1743412827566,0.01561017,591.43,591.13,0.2747739]
[1743412827866,0.01561017,591.43,591.14,0.2747739]
[1743412828061,0.01561017,591.43,591.12,0.2747739]
[1743412828264,0.01561017,591.43,591.13,0.2747739]
[1743412828462,0.01561017,591.43,591.12,0.2747739]
[1743412828666,0.01561017,591.43,591.13,0.2747739]
[1743412828866,0.01561017,591.43,591.12,0.2747739]
[1743412829066,0.01561017,591.43,591.13,0.2747739]
[1743412829267,0.01561017,591.43,591.12,0.2747739]
[1743412829861,0.01561017,591.43,591.13,0.33833505]
[1743412830062,0.01561017,591.43,591.14,0.2747739]
[1743412830263,0.01561017,591.43,591.15,0.3383236]
[1743412830466,0.01561017,591.43,591.16,0.2747739]
[1743412831069,0.01561017,591.43,591.15,0.3383236]
[1743412831268,0.01561017,591.43,591.16,0.27478215]
[1743412834571,0.01561017,591.43,591.17,0.27477764]
[1743412834766,0.01561017,591.43,591.16,0.27477764]
[1743412836874,0.01561017,591.43,591.17,0.33831216]
[1743412837074,0.01561017,591.43,591.18,0.27477764]
[1743412837477,0.01561017,591.43,591.19,0.33830071]
[1743412837675,0.01561017,591.43,591.2,0.27477764]
[1743412837870,0.01561017,591.43,591.21,0.33828927]
[1743412838077,0.01561017,591.43,591.22,0.27477764]
[1743412839077,0.01561017,591.43,591.23,0.33827782]
[1743412839372,0.01561017,591.43,591.24,0.27477764]
[1743412839574,0.01561017,591.43,591.25,0.33826638]
[1743412839776,0.01561017,591.43,591.26,0.27477764]
[1743412840076,0.01561017,591.43,591.27,0.33825494]
[1743412840279,0.01561017,591.43,591.28,0.27477764]
[1743412840477,0.01561017,591.43,591.29,0.3382435]
[1743412840673,0.01561017,591.43,591.3,0.27477764]
[1743412840875,0.01561017,591.43,591.31,0.33823206]
[1743412841075,0.01561017,591.43,591.32,0.27477764]
[1743412841379,0.01561017,591.43,591.33,0.33822062]
[1743412841578,0.01561017,591.43,591.34,0.27477764]
[1743412845579,0.01561017,591.43,591.35,0.33820918]
[1743412845773,0.01561017,591.43,591.36,0.27477764]
[1743412845977,0.01561017,591.43,591.37,0.33819774]
[1743412846277,0.01561017,591.43,591.38,0.27477764]
[1743412846478,0.01561017,591.43,591.39,0.3381863]
[1743412846679,0.01561017,591.43,591.4,0.27477764]
[1743412846878,0.01561017,591.43,591.41,0.33817487]
[1743412847078,0.01561017,591.43,591.42,0.27477764]
[1743412847280,0.01561017,591.43,591.42,0.61294679]
[1743412853184,0.00316944,591.43,591.42,0.61294679]
[1743412853987,0.00316944,591.43,591.42,0.61282646]
[1743412859190,0.00316944,591.43,591.42,0.33816915]
[1743412859385,0.00316944,591.43,591.42,0.61281886]
[1743412860787,0.00316944,591.43,591.42,0.33816915]
[1743412860988,0.00316944,591.43,591.42,0.61283085]
[1743412862986,0.00316944,591.43,591.42,0.33816915]
[1743412863187,0.628,591.67,591.42,0.61283764]
[1743412863391,0.628,591.67,591.43,0.61283192]
[1743412863689,0.628,591.67,591.44,0.27466849]
[1743412864695,0.628,591.67,591.45,0.33815199]
[1743412864895,0.628,591.67,591.46,0.27466849]
[1743412865096,0.628,591.67,591.47,0.33814056]
[1743412865390,0.628,591.67,591.48,0.27466849]
[1743412866495,0.556,591.74,591.48,0.27466849]
[1743412867192,0.556,591.74,591.49,0.33812913]
[1743412867396,0.556,591.74,591.5,0.27466849]
[1743412867597,0.556,591.74,591.49,0.33812913]
[1743412867796,0.556,591.74,591.5,0.2745937]
[1743412867999,0.556,591.74,591.51,0.33811769]
[1743412868190,0.556,591.74,591.52,0.2745937]
[1743412874805,0.556,591.74,591.51,0.33811769]
[1743412875008,0.556,591.74,591.52,0.27470995]
[1743412875746,0.556,591.74,591.53,0.27470701]
[1743412875931,0.556,591.74,591.52,0.27470701]
[1743412876127,0.556,591.74,591.53,0.27470701]
[1743412876420,0.556,591.74,591.54,0.27470701]
[1743412876722,0.556,591.74,591.55,0.27471668]
[1743412876918,0.556,591.74,591.52,0.27471668]
[1743412877908,0.556,591.74,591.53,0.27471668]
[1743412878109,0.556,591.74,590.57,0.27471668]
[1743412878310,0.556,591.74,590.59,0.3386444]
[1743412878512,0.556,591.74,590.6,0.27475397]
[1743412878815,0.556,591.74,590.62,0.3386272]
[1743412879008,0.556,591.74,590.63,0.27475397]
[1743412879212,0.556,591.74,590.65,0.33861]
[1743412879412,0.556,591.74,590.66,0.27475397]
[1743412879609,0.556,591.74,590.68,0.3385928]
[1743412879809,0.556,591.74,590.69,0.27475397]
[1743412880015,0.556,591.74,590.71,0.33857561]
[1743412880209,0.556,591.74,590.89,2.5552563]
[1743412880515,0.556,591.74,590.9,0.27475397]
[1743412880718,0.556,591.74,590.91,0.27475397]
[1743412880914,0.556,591.74,590.92,0.27475397]
[1743412881112,0.556,591.74,590.93,0.27475397]
[1743412881312,0.556,591.74,590.94,0.27475397]
[1743412881515,0.556,591.74,590.95,0.27475397]
[1743412881715,0.556,591.74,590.96,0.27475397]
[1743412882013,0.556,591.74,590.97,0.27475397]
[1743412882213,0.556,591.74,590.98,0.27475397]
[1743412882418,0.556,591.74,590.99,0.27475397]
[1743412882916,0.556,591.74,591.0,0.27475397]
[1743412883117,0.556,591.74,591.01,0.27475397]
[1743412883317,0.556,591.74,591.02,0.27475397]
[1743412883519,0.594,591.73,591.03,0.27475397]
[1743412883721,0.594,591.73,590.72,0.29418229]
[1743412883722,0.594,591.73,591.04,0.27475397]
[1743412884121,0.594,591.73,591.05,0.27475397]
[1743412884322,0.594,591.73,590.73,0.27475397]
[1743412884515,0.594,591.73,590.74,0.27475397]
[1743412884716,0.594,591.73,590.88,2.5552563]
[1743412884919,0.557,591.72,590.89,0.27475397]
[1743412885719,0.557,591.72,590.9,0.27486595]
[1743412885923,0.557,591.72,590.91,0.27486595]
[1743412886222,0.557,591.72,590.92,0.27486595]
[1743412886522,0.557,591.72,590.93,0.27486595]
[1743412886722,0.557,591.72,590.73,0.27486595]
[1743412886918,0.557,591.72,590.74,0.27486595]
[1743412887119,0.557,591.72,590.75,0.27486595]
[1743412887417,0.557,591.72,590.71,0.33857561]
[1743412887418,0.557,591.72,590.77,0.33854122]
[1743412887619,0.557,591.72,590.78,0.27484408]
[1743412887823,0.557,591.72,590.8,0.33852403]
[1743412888122,0.557,591.72,590.81,0.27484408]
[1743412888325,0.557,591.72,590.83,0.33850684]
[1743412888523,0.557,591.72,590.84,0.27484408]
[1743412888725,0.557,591.72,590.86,0.33848965]
[1743412888923,0.557,591.72,590.87,0.27484408]
[1743412889424,0.557,591.72,590.88,0.27484406]
[1743412889623,0.557,591.72,590.89,0.33847247]
[1743412889820,0.557,591.72,590.9,0.27484406]
[1743412890021,0.557,591.72,590.91,0.33846101]
[1743412890220,0.557,591.72,590.92,0.27484406]
[1743412890524,0.557,591.72,590.93,0.33844956]
[1743412890823,0.557,591.72,590.94,0.27484406]
[1743412891016,0.557,591.72,590.95,0.3384381]
[1743412891218,0.557,591.72,590.96,0.27484406]
[1743412891420,0.557,591.72,590.97,0.33842665]
[1743412891621,0.557,591.72,590.98,0.27484406]
[1743412891822,0.557,591.72,590.99,0.3384152]
[1743412892123,0.557,591.72,591.0,0.27484406]
[1743412892322,0.557,591.72,591.01,0.6132478]
[1743412892520,0.557,591.72,591.02,0.61324208]
[1743412892723,0.557,591.72,591.03,0.61323635]
[1743412892923,0.557,591.72,591.04,0.61323063]
[1743412893125,0.557,591.72,591.05,0.6132249]
[1743412893325,0.557,591.72,591.06,0.61321918]
[1743412893521,0.557,591.72,591.07,0.61321345]
[1743412893727,0.557,591.72,591.08,0.61320773]
[1743412894028,0.557,591.72,591.09,0.27484406]
[1743412894225,0.557,591.72,591.1,0.27484406]
[1743412894427,0.557,591.72,591.11,0.27484406]
[1743412894629,0.557,591.72,591.08,0.33836367]
[1743412894828,0.557,591.72,591.09,0.27482767]
[1743412895519,0.612,591.71,591.09,0.27482767]
[1743412896921,0.612,591.71,591.09,0.61318561]
[1743412897121,0.612,591.71,591.1,0.61317989]
[1743412897321,0.612,591.71,591.11,0.61317417]
[1743412897522,0.612,591.71,591.12,0.61316844]
[1743412897721,0.612,591.71,591.13,0.61316272]
[1743412897928,0.612,591.71,591.14,0.61315699]
[1743412898123,0.612,591.71,590.82,0.29421836]
[1743412898124,0.612,591.71,591.15,0.61315127]
[1743412898324,0.612,591.71,591.16,0.61314555]
[1743412898527,0.612,591.71,591.17,0.61313983]
[1743412898727,0.612,591.71,591.18,0.6131341]
[1743412899022,0.612,591.71,591.19,0.61312838]
[1743412899224,0.612,591.71,591.2,0.27482767]
[1743412900022,0.612,591.71,591.19,0.33830071]
[1743412900222,0.612,591.71,591.2,0.27477099]
[1743412901427,0.743,591.7,591.2,0.27477099]
[1743412903625,1.303,591.7,591.2,0.27477099]
[1743412904726,1.19747226,591.69,589.97,0.27477099]
[1743412904931,1.19747226,591.69,589.99,0.33898879]
[1743412905133,1.19747226,591.69,590.0,0.27491654]
[1743412905333,1.19747226,591.69,589.99,0.33898879]
[1743412905528,1.19747226,591.69,590.0,0.27493419]
[1743412905737,1.303,591.7,590.01,0.56933923]
[1743412905934,1.303,591.7,590.02,0.27493419]
[1743412906135,1.303,591.7,590.35,2.5552563]
[1743412906434,1.303,591.7,590.36,0.27493419]
[1743412906636,1.303,591.7,590.37,0.27493419]
[1743412906835,1.19615675,591.69,590.38,0.27493419]
[1743412907035,1.19615675,591.69,590.39,0.27493419]
[1743412907236,1.19615675,591.69,590.35,2.5552563]
[1743412907434,1.303,591.7,590.36,0.27497974]
[1743412907435,1.19615675,591.68,590.36,0.27497974]
[1743412907633,1.19615675,591.68,590.37,0.27497974]
[1743412907932,1.19615675,591.67,590.38,0.27497974]
[1743412908132,1.19615675,591.67,590.39,0.27497974]
[1743412908333,1.19615675,591.66,590.4,0.27497974]
[1743412908534,1.19615675,591.66,590.41,0.27497974]
[1743412908834,1.4461017,591.65,590.42,0.27497974]
[1743412909030,1.4461017,591.64,590.42,0.27497974]
[1743412909237,1.4461017,591.63,590.43,0.27497974]
[1743412909535,2.64225845,591.62,590.44,0.27497974]
[1743412909729,1.4461017,591.61,590.45,0.27497974]
[1743412910034,1.19615675,591.62,590.46,0.27497974]
[1743412910236,1.19615675,591.6,590.47,0.27497974]
[1743412910430,1.44545931,591.59,590.48,0.27497974]
[1743412910630,1.44545931,591.58,590.49,0.27497974]
[1743412910834,1.44545931,591.57,590.5,0.27497974]
[1743412911033,1.44545931,591.57,590.07,2.5552563]
[1743412911034,1.44545931,591.56,590.51,0.27497974]
[1743412911236,1.44545931,591.55,590.08,0.27497974]
[1743412911433,1.44545931,591.54,590.09,0.27497974]
[1743412911630,4.63892674,591.53,590.1,0.27497974]
[1743412911831,4.63892674,591.52,590.11,0.27497974]
[1743412912130,2.3294649,591.51,590.12,0.27497974]
[1743412912328,2.3294649,591.5,590.13,0.27497974]
[1743412912533,1.44545931,591.49,590.13,0.27497974]
[1743412912733,2.32872001,591.48,590.14,0.27512947]
[1743412912935,2.32871139,591.47,590.05,0.27512947]
[1743412913133,1.44545931,591.46,590.06,0.27512947]
[1743412913337,1.44545931,591.45,590.07,0.27512947]
[1743412913534,1.44545931,591.45,590.04,0.29449223]
[1743412913535,1.44545931,591.44,590.08,0.27512947]
[1743412913739,1.44545931,591.43,590.09,0.27512947]
[1743412913939,3.65108078,591.47,590.1,0.27512947]
[1743412913940,1.44137308,591.42,590.1,0.27512947]
[1743412914139,1.19615675,591.43,590.11,0.27512947]
[1743412914340,1.44135006,591.42,590.05,0.27512947]
[1743412914546,2.32336111,591.41,590.06,0.27512947]
[1743412914740,2.32336111,591.4,590.0,0.27512947]
[1743412915039,1.44135006,591.39,590.01,0.27512947]
[1743412915243,1.44135006,591.38,590.0,0.27512947]
[1743412915444,1.44135006,591.37,590.01,0.27512947]
[1743412915740,1.44135006,591.36,590.02,0.27512947]
[1743412915939,1.44135006,591.35,590.02,0.27512947]
[1743412916145,1.44135006,591.34,590.02,0.27512947]
[1743412916346,1.44135006,591.33,590.02,0.27512947]
[1743412916546,1.44135006,591.32,590.02,0.27512947]
[1743412916742,1.43818062,591.31,590.02,0.27512947]
[1743412916947,1.43818062,591.3,590.02,0.27512947]
[1743412917148,1.43818062,591.29,590.02,0.27512947]
[1743412917347,3.09773745,591.29,590.02,0.27512947]
[1743412917744,3.09773745,591.29,590.03,0.27512947]
[1743412918050,1.19615675,591.28,590.04,0.27512947]
[1743412918448,1.19615675,591.27,590.05,0.27512947]
[1743412918743,1.49072252,591.27,590.05,0.27512947]
[1743412918942,1.49072252,591.27,590.02,0.29456577]
[1743412918943,1.49072252,591.27,590.06,0.27512947]
[1743412919146,1.49072252,591.27,590.07,0.27512947]
[1743412919342,1.19615675,591.26,590.08,0.27512947]
[1743412919543,1.19615675,591.26,590.09,0.27512947]
[1743412919743,0.29456577,591.27,590.11,0.33891986]
[1743412919947,0.29456577,591.27,590.12,0.27512947]
[1743412920148,0.29456577,591.27,590.14,0.33890263]
[1743412920348,0.29456577,591.27,590.15,0.27512947]
[1743412920548,3.17776187,591.42,590.17,0.3388854]
[1743412920749,1.18638213,591.26,590.18,0.27512947]
[1743412920950,1.18638213,591.26,590.2,0.33886818]
[1743412921144,3.17776187,591.39,590.21,0.27512947]
[1743412921345,0.83,591.25,590.22,0.61404836]
[1743412921549,0.83,591.25,590.23,0.61404262]
[1743412921750,1.48067487,591.24,590.24,0.61403688]
[1743412922051,2.62033873,591.23,590.25,0.61403114]
[1743412922243,1.43421467,591.22,590.26,0.6140254]
[1743412922449,1.18612406,591.23,590.27,0.61401966]
[1743412922650,1.18612406,591.22,590.27,0.61401966]
[1743412922846,1.18612406,591.22,590.28,0.27519167]
[1743412923050,1.18612406,591.21,590.28,0.27519167]
[1743412923553,1.18612406,591.21,590.27,0.33882799]
[1743412923554,1.18612406,591.2,590.29,0.27519167]
[1743412923747,1.43223315,591.19,590.28,0.27519167]
[1743412923949,1.43223315,591.18,590.29,0.27519167]
[1743412924149,1.43223315,591.17,590.28,0.27519167]
[1743412924353,1.43223315,591.16,590.3,0.27519167]
[1743412924547,3.07996681,591.16,590.31,0.27519167]
[1743412924753,3.07996681,591.16,590.28,0.27519167]
[1743412925053,1.18612406,591.15,590.29,0.27525439]